fUSD/lending_fUSD_20250716
["ID","MTS","AMOUNT","RATE_DAILY","PERIOD"]
[372506735,1752663202775,-460.0,0.00023835,2]
[372506736,1752663202786,-460.0,0.00023835,2]
[372506737,1752663202797,-519.13,0.00023835,2]
[372506738,1752663202807,-460.0,0.00023835,2]
[372506739,1752663202817,-676.6,0.00023835,2]
[372506740,1752663202827,-460.0,0.00023835,2]
[372506741,1752663202838,-505.45,0.00023835,2]
[372506742,1752663202849,-765.61,0.00023835,2]
[372506743,1752663202860,-522.62,0.00023835,2]
[372506744,1752663202871,-538.58,0.00023835,2]
[372506745,1752663202881,-460.0,0.00023835,2]
[372506746,1752663202891,-460.0,0.00023835,2]
[372506747,1752663202902,-1585.06,0.00023835,2]
[372506748,1752663202912,-924.61,0.00023835,2]
[372506749,1752663202922,-609.32,0.00023835,2]
[372506750,1752663202931,-694.23,0.00023835,2]
[372506751,1752663202941,-832.33,0.00023835,2]
[372506752,1752663202951,-983.47,0.00023835,2]
[372506753,1752663202961,-460.0,0.00023835,2]
[372506754,1752663202971,-597.48,0.00023835,2]
[372506755,1752663202982,-935.9,0.00023835,2]
[372506756,1752663202993,-891.24,0.00023835,2]
[372506757,1752663203003,-644.94,0.00023835,2]
[372506758,1752663203013,-954.44,0.00023835,2]
[372506759,1752663203023,-731.16,0.00023835,2]
[372506760,1752663203033,-460.0,0.00023835,2]
[372506761,1752663203043,-833.42,0.00023835,2]
[372506762,1752663203053,-523.46,0.00023835,2]
[372506763,1752663203064,-460.0,0.00023835,2]
[372506764,1752663203075,-500.0,0.00023835,5]
[372506765,1752663203085,-460.0,0.00023835,2]
[372506766,1752663203095,-774.89,0.00023835,2]
[372506767,1752663203106,-488.59,0.00023835,2]
[372506768,1752663203116,-518.16,0.00023835,2]
[372506769,1752663203126,-381.82030207,0.00023835,2]
[372506770,1752663203137,-460.0,0.00023835,2]
[372506771,1752663203147,-876.74,0.00023835,2]
[372506772,1752663203160,-1277.44,0.00023835,2]
[372506773,1752663203171,-460.0,0.00023835,2]
[372506774,1752663203182,-737.68,0.00023835,2]
[372506775,1752663203194,-460.0,0.00023835,2]
[372506776,1752663203204,-566.92,0.00023835,2]
[372506777,1752663203215,-819.52,0.00023835,2]
[372506778,1752663203227,-460.0,0.00023835,2]
[372506779,1752663203237,-529.96,0.00023835,2]
[372506780,1752663203247,-567.99650932,0.00023835,2]
[372506781,1752663203257,-460.0,0.00023835,2]
[372506782,1752663203267,-509.23,0.00023835,2]
[372506783,1752663203277,-460.0,0.00023835,2]
[372506784,1752663203287,-460.0,0.00023835,2]
[372506785,1752663203296,-732.88,0.00023835,2]
[372506786,1752663203307,-992.29,0.00023835,2]
[372506787,1752663203318,-1012.49,0.00023835,2]
[372506788,1752663203328,-518.81,0.00023835,2]
[372506789,1752663203337,-460.0,0.00023835,2]
[372506790,1752663203347,-460.0,0.00023835,2]
[372506791,1752663203357,-1118.14,0.00023835,2]
[372506792,1752663203369,-1830.19,0.00023835,2]
[372506793,1752663203380,-698.13,0.00023835,2]
[372506794,1752663203391,-536.27,0.00023835,2]
[372506795,1752663203402,-1149.74,0.00023835,2]
[372506796,1752663203413,-460.0,0.00023835,2]
[372506797,1752663203423,-1545.31,0.00023835,2]
[372506798,1752663203434,-225.73385685,0.00023835,2]
[372506799,1752663203444,-460.0,0.00023835,2]
[372506800,1752663203455,-726.17,0.00023835,2]
[372506801,1752663203465,-1284.09,0.00023835,2]
[372506802,1752663203476,-460.0,0.00023835,2]
[372506803,1752663203487,-1284.09,0.00023835,2]
[372506804,1752663203497,-1215.86,0.00023835,2]
[372506805,1752663203508,-761.3,0.00023835,2]
[372506806,1752663203518,-501.15,0.00023835,2]
[372506807,1752663203528,-460.0,0.00023835,2]
[372506808,1752663203538,-460.0,0.00023835,2]
[372506809,1752663203549,-639.95,0.00023835,2]
[372506810,1752663203559,-645.67,0.00023835,2]
[372506811,1752663203569,-1102.51,0.00023835,2]
[372506812,1752663203580,-482.63,0.00023835,2]
[372506813,1752663203591,-555.69,0.00023835,2]
[372506814,1752663203601,-460.0,0.00023835,2]
[372506815,1752663203611,-486.85,0.00023835,2]
[372506816,1752663203622,-460.0,0.00023835,2]
[372506817,1752663203633,-460.0,0.00023835,2]
[372506818,1752663203643,-1307.09,0.00023835,2]
[372506819,1752663203653,-782.15,0.00023835,2]
[372506820,1752663203663,-772.4,0.00023835,2]
[372506821,1752663203674,-966.62,0.00023835,2]
[372506822,1752663203684,-752.28,0.00023835,2]
[372506823,1752663203695,-277.63772056,0.00023835,2]
[372506824,1752663203704,-1360.67,0.00023835,2]
[372506825,1752663203715,-563.43,0.00023835,2]
[372506826,1752663203726,-839.82,0.00023835,2]
[372506827,1752663203736,-473.28,0.00023835,2]
[372506828,1752663203746,-291.83617655,0.00023835,2]
[372506829,1752663203757,-691.75,0.00023835,2]
[372506830,1752663203767,-517.48,0.00023835,2]
[372506831,1752663203777,-517.7,0.00023835,2]
[372506832,1752663203788,-1030.19,0.00023835,2]
[372506833,1752663203797,-1612.9,0.00023835,2]
[372506834,1752663203807,-497.86,0.00023835,2]
[372506835,1752663203817,-1319.17,0.00023835,2]
[372506836,1752663203827,-1348.58,0.00023835,2]
[372506837,1752663203837,-460.0,0.00023835,2]
[372506838,1752663203846,-876.39,0.00023835,2]
[372506839,1752663203856,-460.0,0.00023835,2]
[372506840,1752663203866,-521.22,0.00023835,2]
[372506841,1752663203877,-900.25,0.00023835,2]
[372506842,1752663203888,-460.0,0.00023835,2]
[372506843,1752663203898,-794.42,0.00023835,2]
[372506844,1752663203908,-313.29966117,0.00023835,2]
[372506845,1752663203919,-460.0,0.00023835,2]
[372506846,1752663203930,-460.0,0.00023835,2]
[372506847,1752663204075,-671.7,0.00023835,2]
[372506848,1752663204085,-1426.38,0.00023835,2]
[372506849,1752663204096,-617.3,0.00023835,2]
[372506850,1752663204107,-460.0,0.00023835,2]
[372506851,1752663204117,-460.0,0.00023835,2]
[372506852,1752663204127,-3492.16,0.00023835,2]
[372506853,1752663204138,-960.48,0.00023835,2]
[372506854,1752663204148,-460.0,0.00023835,2]
[372506855,1752663204157,-697.02,0.00023835,2]
[372506856,1752663204167,-859.04,0.00023835,2]
[372506857,1752663204177,-460.0,0.00023835,2]
[372506858,1752663204187,-486.17398593,0.00023835,2]
[372506859,1752663204197,-578.96,0.00023835,2]
[372506860,1752663204207,-737.1,0.00023835,2]
[372506861,1752663204218,-480.69,0.00023835,2]
[372506862,1752663204231,-658.34,0.00023835,2]
[372506863,1752663204242,-3159.42,0.00023835,2]
[372506864,1752663204252,-1247.6,0.00023835,2]
[372506865,1752663204262,-460.0,0.00023835,2]
[372506866,1752663204273,-1704.14,0.00023835,2]
[372506867,1752663204283,-889.84,0.00023835,2]
[372506868,1752663204294,-543.01596971,0.00023835,2]
[372506869,1752663204306,-980.18,0.00023835,2]
[372506870,1752663204317,-864.4,0.00023835,2]
[372506871,1752663204327,-460.0,0.00023835,2]
[372506872,1752663204338,-1337.4,0.00023835,2]
[372506873,1752663204348,-460.0,0.00023835,2]
[372506874,1752663204358,-538.85,0.00023835,2]
[372506875,1752663204369,-460.0,0.00023835,2]
[372506876,1752663204379,-439.19,0.00023835,2]
[372506877,1752663204389,-460.0,0.00023835,2]
[372506878,1752663204399,-770.68,0.00023835,2]
[372506879,1752663204410,-1191.07,0.00023835,2]
[372506880,1752663204419,-460.0,0.00023835,2]
[372506881,1752663204430,-1520.94,0.00023835,2]
[372506882,1752663204440,-460.0,0.00023835,2]
[372506883,1752663204450,-554.47,0.00023835,2]
[372506884,1752663204460,-460.0,0.00023835,2]
[372506885,1752663204470,-575.57,0.00023835,2]
[372506886,1752663204480,-614.94,0.00023835,2]
[372506887,1752663204490,-508.9,0.00023835,2]
[372506888,1752663204506,-460.0,0.00023835,2]
[372506889,1752663204516,-2763.38,0.00023835,2]
[372506890,1752663204526,-508.1,0.00023835,2]
[372506891,1752663204536,-1649.66,0.00023835,2]
[372506892,1752663204546,-1198.93,0.00023835,2]
[372506893,1752663204555,-460.0,0.00023835,2]
[372506894,1752663204564,-1021.74,0.00023835,2]
[372506895,1752663204574,-1580.32,0.00023835,2]
[372506896,1752663204584,-460.0,0.00023835,2]
[372506897,1752663204593,-2741.41,0.00023835,2]
[372506898,1752663204603,-1900.49,0.00023835,2]
[372506899,1752663204613,-460.0,0.00023835,2]
[372506900,1752663204622,-3441.76,0.00023835,2]
[372506901,1752663204632,-1705.39,0.00023835,2]
[372506902,1752663204642,-460.0,0.00023835,2]
[372506903,1752663204651,-504.67,0.00023835,2]
[372506904,1752663204661,-962.35,0.00023835,2]
[372506905,1752663204671,-460.0,0.00023835,2]
[372506906,1752663204680,-2750.23,0.00023835,2]
[372506907,1752663204690,-478.83,0.00023835,2]
[372506908,1752663204700,-525.54,0.00023835,2]
[372506909,1752663204710,-1147.29,0.00023835,2]
[372506910,1752663204720,-737.1,0.00023835,2]
[372506911,1752663204730,-1861.51,0.00023835,2]
[372506912,1752663204740,-1161.16,0.00023835,2]
[372506913,1752663204750,-1367.94,0.00023835,2]
[372506914,1752663204759,-464.05,0.00023835,2]
[372506915,1752663204769,-515.0,0.00023835,2]
[372506916,1752663204779,-796.7,0.00023835,2]
[372506917,1752663204789,-509.86,0.00023835,2]
[372506918,1752663204799,-1541.82,0.00023835,2]
[372506919,1752663204809,-2639.83,0.00023835,2]
[372506920,1752663204819,-1604.58,0.00023835,2]
[372506921,1752663204829,-2045.95,0.00023835,2]
[372506922,1752663204839,-720.83,0.00023835,2]
[372506923,1752663204849,-995.1,0.00023835,2]
[372506924,1752663204859,-2767.68,0.00023835,2]
[372506925,1752663204869,-556.0,0.00023835,2]
[372506926,1752663204879,-460.0,0.00023835,2]
[372506927,1752663204890,-474.83,0.00023835,2]
[372506928,1752663204900,-465.39,0.00023835,2]
[372506929,1752663204911,-460.0,0.00023835,2]
[372506930,1752663204921,-597.28,0.00023835,2]
[372506931,1752663204931,-1174.38,0.00023835,2]
[372506932,1752663204941,-469.93,0.00023835,2]
[372506933,1752663204952,-579.42,0.00023835,2]
[372506934,1752663204961,-1146.77,0.00023835,2]
[372506935,1752663204971,-2023.63,0.00023835,2]
[372506936,1752663204981,-627.96,0.00023835,2]
[372506937,1752663204992,-2253.55,0.00023835,2]
[372506938,1752663205002,-597.05,0.00023835,2]
[372506939,1752663205012,-950.28,0.00023835,2]
[372506940,1752663205023,-692.22,0.00023835,2]
[372506941,1752663205033,-597.04,0.00023835,2]
[372506942,1752663205043,-460.0,0.00023835,2]
[372506943,1752663205053,-460.0,0.00023835,2]
[372506944,1752663205063,-934.91,0.00023835,2]
[372506945,1752663205072,-1954.32,0.00023835,2]
[372506946,1752663205082,-460.0,0.00023835,2]
[372506947,1752663205093,-1051.45,0.00023835,2]
[372506948,1752663205103,-1320.19,0.00023835,2]
[372506949,1752663205113,-460.0,0.00023835,2]
[372506950,1752663205123,-460.0,0.00023835,2]
[372506951,1752663205135,-1367.21,0.00023835,2]
[372506952,1752663205147,-3449.55,0.00023835,2]
[372506953,1752663205156,-850.19,0.00023835,2]
[372506954,1752663205166,-527.48,0.00023835,2]
[372506955,1752663205176,-3110.28,0.00023835,2]
[372506956,1752663205185,-802.2,0.00023835,2]
[372506957,1752663205195,-460.0,0.00023835,2]
[372506958,1752663205205,-2979.04,0.00023835,2]
[372506959,1752663205216,-940.26,0.00023835,2]
[372506960,1752663205227,-2098.67,0.00023835,2]
[372506961,1752663205238,-752.81,0.00023835,2]
[372506962,1752663205248,-689.36,0.00023835,2]
[372506963,1752663205258,-945.82,0.00023835,2]
[372506964,1752663205269,-461.28,0.00023835,2]
[372506965,1752663205279,-1127.17,0.00023835,2]
[372506966,1752663205289,-1080.52,0.00023835,2]
[372506967,1752663205299,-460.0,0.00023835,2]
[372506968,1752663205311,-486.62,0.00023835,2]
[372506969,1752663205322,-3049.9,0.00023835,2]
[372506970,1752663205333,-1920.84,0.00023835,2]
[372506971,1752663205344,-460.0,0.00023835,2]
[372506972,1752663205353,-460.0,0.00023835,2]
[372506973,1752663205363,-1266.56,0.00023835,2]
[372506974,1752663205373,-1363.97,0.00023835,2]
[372506975,1752663205383,-547.91,0.00023835,2]
[372506976,1752663205393,-460.0,0.00023835,2]
[372506977,1752663205402,-1157.14,0.00023835,2]
[372506978,1752663205411,-963.24,0.00023835,2]
[372506979,1752663205420,-526.48,0.00023835,2]
[372506980,1752663205428,-1152.83,0.00023835,2]
[372506981,1752663205438,-2280.97,0.00023835,2]
[372506982,1752663205447,-2306.11,0.00023835,2]
[372506983,1752663205457,-1495.62,0.00023835,2]
[372506984,1752663205467,-658.25,0.00023835,2]
[372506985,1752663205477,-2249.33,0.00023835,2]
[372506986,1752663205487,-902.72,0.00023835,2]
[372506987,1752663205497,-498.87,0.00023835,2]
[372506988,1752663205507,-1741.37,0.00023835,2]
[372506989,1752663205517,-460.0,0.00023835,2]
[372506990,1752663205527,-515.22,0.00023835,2]
[372506991,1752663205536,-1256.01,0.00023835,2]
[372506992,1752663205546,-748.36,0.00023835,2]
[372506993,1752663205556,-730.45,0.00023835,2]
[372506994,1752663205566,-889.78,0.00023835,2]
[372506995,1752663205576,-1213.76,0.00023835,2]
[372506996,1752663205586,-460.0,0.00023835,2]
[372506997,1752663205596,-976.13,0.00023835,2]
[372506998,1752663205605,-595.0,0.00023835,2]
[372506999,1752663205615,-1393.74,0.00023835,2]
[372507000,1752663205625,-1803.46,0.00023835,2]
[372507001,1752663205635,-252.79466626,0.00023835,2]
[372507002,1752663205645,-2622.24,0.00023835,2]
[372507003,1752663205654,-460.0,0.00023835,2]
[372507004,1752663205665,-476.01,0.00023835,2]
[372507005,1752663205678,-2059.43,0.00023835,2]
[372507006,1752663205688,-2566.84,0.00023835,2]
[372507007,1752663205698,-567.34,0.00023835,2]
[372507008,1752663205708,-2711.83,0.00023835,2]
[372507009,1752663205718,-460.0,0.00023835,2]
[372507010,1752663205727,-629.46,0.00023835,2]
[372507011,1752663205737,-1222.0,0.00023835,2]
[372507012,1752663205747,-1237.1,0.00023835,2]
[372507013,1752663205756,-2588.11,0.00023835,2]
[372507014,1752663205765,-460.0,0.00023835,2]
[372507015,1752663205775,-1423.44,0.00023835,2]
[372507016,1752663205785,-2529.28,0.00023835,2]
[372507017,1752663205795,-460.0,0.00023835,2]
[372507018,1752663205804,-499.91,0.00023835,2]
[372507019,1752663205814,-1539.06,0.00023835,2]
[372507020,1752663205823,-460.0,0.00023835,2]
[372507021,1752663205833,-1099.63,0.00023835,2]
[372507022,1752663205843,-1405.9,0.00023835,2]
[372507023,1752663205852,-460.0,0.00023835,2]
[372507024,1752663205862,-851.53,0.00023835,2]
[372507025,1752663205872,-3553.18,0.00023835,2]
[372507026,1752663205882,-540.25,0.00023835,2]
[372507027,1752663205892,-1813.38,0.00023835,2]
[372507028,1752663205902,-460.0,0.00023835,2]
[372507029,1752663205914,-782.81,0.00023835,2]
[372507030,1752663205923,-3147.54,0.00023835,2]
[372507031,1752663205933,-1440.52,0.00023835,2]
[372507032,1752663205943,-859.58,0.00023835,2]
[372507033,1752663205952,-1141.87,0.00023835,2]
[372507034,1752663205963,-1810.64,0.00023835,2]
[372507035,1752663205973,-3032.38,0.00023835,2]
[372507036,1752663205983,-460.0,0.00023835,2]
[372507037,1752663205993,-853.73,0.00023835,2]
[372507038,1752663206003,-525.43,0.00023835,2]
[372507039,1752663206012,-2023.67,0.00023835,2]
[372507040,1752663206023,-1417.02,0.00023835,2]
[372507041,1752663206033,-2884.5,0.00023835,2]
[372507042,1752663206043,-496.87,0.00023835,2]
[372507043,1752663206054,-3089.316035,0.00023835,2]
[372507044,1752663206065,-2243.27,0.00023835,2]
[372507045,1752663206075,-460.0,0.00023835,2]
[372507046,1752663206086,-460.0,0.00023835,2]
[372507047,1752663206096,-3447.716716,0.00023835,2]
[372507048,1752663206106,-1160.26,0.00023835,2]
[372507049,1752663206116,-1094.15,0.00023835,2]
[372507050,1752663206126,-645.68,0.00023835,2]
[372507051,1752663206135,-1128.01,0.00023835,2]
[372507052,1752663206145,-465.62,0.00023835,2]
[372507053,1752663206155,-730.18,0.00023835,2]
[372507054,1752663206165,-3424.477153,0.00023835,2]
[372507055,1752663206174,-642.34,0.00023835,2]
[372507056,1752663206184,-1314.79,0.00023835,2]
[372507057,1752663206197,-1198.89,0.00023835,2]
[372507058,1752663206207,-1203.47,0.00023835,2]
[372507059,1752663206217,-887.6,0.00023835,2]
[372507060,1752663206229,-1132.15,0.00023835,2]
[372507061,1752663206239,-903.29,0.00023835,2]
[372507062,1752663206249,-1011.16,0.00023835,2]
[372507063,1752663206258,-994.92,0.00023835,2]
[372507064,1752663206268,-2880.76,0.00023835,2]
[372507065,1752663206278,-1024.12,0.00023835,2]
[372507066,1752663206290,-684.79,0.00023835,2]
[372507067,1752663206306,-1863.81,0.00023835,2]
[372507068,1752663206317,-460.0,0.00023835,2]
[372507069,1752663206327,-1858.32,0.00023835,2]
[372507070,1752663206338,-3055.14,0.00023835,2]
[372507071,1752663206347,-570.24,0.00023835,2]
[372507072,1752663206357,-612.03,0.00023835,2]
[372507073,1752663206366,-3225.29,0.00023835,2]
[372507074,1752663206376,-1452.54,0.00023835,2]
[372507075,1752663206385,-799.53,0.00023835,2]
[372507076,1752663206395,-967.0,0.00023835,2]
[372507077,1752663206405,-460.0,0.00023835,2]
[372507078,1752663206414,-2151.45,0.00023835,2]
[372507079,1752663206423,-909.92,0.00023835,2]
[372507080,1752663206433,-708.79,0.00023835,2]
[372507081,1752663206443,-460.0,0.00023835,2]
[372507082,1752663206453,-18257.49,0.00023835,2]
[372507083,1752663206463,-574.66,0.00023835,2]
[372507084,1752663206473,-460.0,0.00023835,2]
[372507085,1752663206482,-1366.55,0.00023835,2]
[372507086,1752663206492,-2712.48,0.00023835,2]
[372507087,1752663206502,-1243.92,0.00023835,2]
[372507088,1752663206512,-4396.18,0.00023835,2]
[372507089,1752663206522,-530.09,0.00023835,2]
[372507090,1752663206532,-5268.98,0.00023835,2]
[372507091,1752663206542,-558.0,0.00023835,2]
[372507092,1752663206552,-1950.3,0.00023835,2]
[372507093,1752663206562,-661.22,0.00023835,2]
[372507094,1752663206572,-802.89,0.00023835,2]
[372507095,1752663206584,-1009.57,0.00023835,2]
[372507096,1752663206595,-548.97,0.00023835,2]
[372507097,1752663206607,-806.79,0.00023835,2]
[372507098,1752663206617,-1016.81,0.00023835,2]
[372507099,1752663206626,-716.51,0.00023835,2]
[372507100,1752663206636,-1807.77,0.00023835,2]
[372507101,1752663206645,-3401.52,0.00023835,2]
[372507102,1752663206655,-460.0,0.00023835,2]
[372507103,1752663206665,-460.0,0.00023835,2]
[372507104,1752663206674,-1577.99,0.00023835,2]
[372507105,1752663206684,-1090.35,0.00023835,2]
[372507106,1752663206693,-2180.23,0.00023835,2]
[372507107,1752663206704,-993.34,0.00023835,2]
[372507108,1752663206714,-2435.35,0.00023835,2]
[372507109,1752663206724,-460.0,0.00023835,2]
[372507110,1752663206734,-9495.76,0.00023835,2]
[372507111,1752663206743,-932.03,0.00023835,2]
[372507112,1752663206752,-2366.57,0.00023835,2]
[372507113,1752663206762,-635.82,0.00023835,2]
[372507114,1752663206771,-6460.58,0.00023835,2]
[372507115,1752663206781,-460.0,0.00023835,2]
[372507116,1752663206791,-2004.78,0.00023835,2]
[372507117,1752663206800,-460.0,0.00023835,2]
[372507118,1752663206810,-1405.03,0.00023835,2]
[372507119,1752663206820,-689.97,0.00023835,2]
[372507120,1752663206830,-3219.3,0.00023835,2]
[372507121,1752663206840,-1384.4,0.00023835,2]
[372507122,1752663206850,-460.0,0.00023835,2]
[372507123,1752663206860,-460.0,0.00023835,2]
[372507124,1752663206869,-660.19,0.00023835,2]
[372507125,1752663206879,-4073.22,0.00023835,2]
[372507126,1752663206889,-829.45,0.00023835,2]
[372507127,1752663206898,-460.0,0.00023835,2]
[372507128,1752663206908,-1482.8,0.00023835,2]
[372507129,1752663206917,-460.0,0.00023835,2]
[372507130,1752663206927,-1224.36,0.00023835,2]
[372507131,1752663206937,-1186.85,0.00023835,2]
[372507132,1752663206947,-1846.22,0.00023835,2]
[372507133,1752663206957,-2508.45,0.00023835,2]
[372507134,1752663206967,-605.83,0.00023835,2]
[372507135,1752663206977,-1023.53,0.00023835,2]
[372507136,1752663206987,-571.95,0.00023835,2]
[372507137,1752663206996,-2046.51,0.00023835,2]
[372507138,1752663207007,-5496.82,0.00023835,2]
[372507139,1752663207017,-1729.36,0.00023835,2]
[372507140,1752663207027,-845.91,0.00023835,2]
[372507141,1752663207037,-460.0,0.00023835,2]
[372507142,1752663207047,-1153.38,0.00023835,2]
[372507143,1752663207058,-1471.4,0.00023835,2]
[372507144,1752663207068,-460.0,0.00023835,2]
[372507145,1752663207077,-25686.63,0.00023835,2]
[372507146,1752663207087,-2265.87,0.00023835,2]
[372507147,1752663207097,-1804.24,0.00023835,2]
[372507148,1752663207107,-801.55,0.00023835,2]
[372507149,1752663207116,-667.91,0.00023835,2]
[372507150,1752663207126,-167.6,0.00023835,2]
[372507151,1752663207136,-460.0,0.00023835,2]
[372507152,1752663207145,-460.0,0.00023835,2]
[372507153,1752663207155,-460.0,0.00023835,2]
[372507154,1752663207164,-460.0,0.00023835,2]
[372507155,1752663207174,-720.01,0.00023835,2]
[372507156,1752663207184,-912.12,0.00023835,2]
[372507157,1752663207194,-1488.97,0.00023835,2]
[372507158,1752663207204,-2378.43,0.00023835,2]
[372507159,1752663207214,-693.6,0.00023835,2]
[372507160,1752663207223,-568.78,0.00023835,2]
[372507161,1752663207237,-2336.76,0.00023835,2]
[372507162,1752663207247,-1662.59,0.00023835,2]
[372507163,1752663207256,-834.17,0.00023835,2]
[372507164,1752663207266,-3608.17,0.00023835,2]
[372507165,1752663207280,-578.22,0.00023835,2]
[372507166,1752663207289,-465.11,0.00023835,2]
[372507167,1752663207299,-590.67,0.00023835,2]
[372507168,1752663207309,-1551.69,0.00023835,2]
[372507169,1752663207321,-722.56,0.00023835,2]
[372507170,1752663207330,-288.43544642,0.00023835,2]
[372507171,1752663207340,-468.55,0.00023835,2]
[372507172,1752663207350,-4023.17,0.00023835,2]
[372507173,1752663207360,-517.03,0.00023835,2]
[372507174,1752663207370,-460.0,0.00023835,2]
[372507175,1752663207380,-460.0,0.00023835,2]
[372507176,1752663207390,-546.65,0.00023835,2]
[372507177,1752663207400,-4710.56,0.00023835,2]
[372507178,1752663207410,-3644.36,0.00023835,2]
[372507179,1752663207419,-1375.33,0.00023835,2]
[372507180,1752663207429,-460.0,0.00023835,2]
[372507181,1752663207438,-1086.94,0.00023835,2]
[372507182,1752663207448,-1882.13,0.00023835,2]
[372507183,1752663207458,-533.59,0.00023835,2]
[372507184,1752663207468,-819.82,0.00023835,2]
[372507185,1752663207478,-3437.5,0.00023835,2]
[372507186,1752663207488,-846.81,0.00023835,2]
[372507187,1752663207498,-10473.68,0.00023835,2]
[372507188,1752663207508,-956.97,0.00023835,2]
[372507189,1752663207517,-1075.31,0.00023835,2]
[372507190,1752663207527,-10262.44,0.00023835,2]
[372507191,1752663207537,-460.0,0.00023835,2]
[372507192,1752663207546,-9009.22,0.00023835,2]
[372507193,1752663207556,-927.79,0.00023835,2]
[372507194,1752663207565,-7641.39,0.00023835,2]
[372507195,1752663207574,-1305.47,0.00023835,2]
[372507196,1752663207584,-6402.79,0.00023835,2]
[372507197,1752663207593,-999.84,0.00023835,2]
[372507198,1752663207603,-1048.05,0.00023835,2]
[372507199,1752663207612,-1145.26,0.00023835,2]
[372507200,1752663207622,-1085.51,0.00023835,2]
[372507201,1752663207631,-7522.89,0.00023835,2]
[372507202,1752663207641,-985.55,0.00023835,2]
[372507203,1752663207650,-460.0,0.00023835,2]
[372507204,1752663207659,-7023.53,0.00023835,2]
[372507205,1752663207669,-1618.81,0.00023835,2]
[372507206,1752663207678,-460.0,0.00023835,2]
[372507207,1752663207688,-699.45,0.00023835,2]
[372507208,1752663207698,-4907.65,0.00023835,2]
[372507209,1752663207709,-460.0,0.00023835,2]
[372507210,1752663207720,-460.0,0.00023835,2]
[372507211,1752663207730,-4103.12,0.00023835,2]
[372507212,1752663207740,-587.29,0.00023835,2]
[372507213,1752663207749,-1101.08,0.00023835,2]
[372507214,1752663207759,-2334.85,0.00023835,2]
[372507215,1752663207768,-1300.92,0.00023835,2]
[372507216,1752663207778,-1839.74,0.00023835,2]
[372507217,1752663207787,-7022.82,0.00023835,2]
[372507218,1752663207796,-460.0,0.00023835,2]
[372507219,1752663207806,-460.0,0.00023835,2]
[372507220,1752663207815,-805.39,0.00023835,2]
[372507221,1752663207825,-460.0,0.00023835,2]
[372507222,1752663207835,-574.7,0.00023835,2]
[372507223,1752663207845,-460.0,0.00023835,2]
[372507224,1752663207855,-4783.75,0.00023835,2]
[372507225,1752663207865,-11831.05,0.00023835,2]
[372507226,1752663207875,-460.0,0.00023835,2]
[372507227,1752663207884,-2063.66,0.00023835,2]
[372507228,1752663207894,-787.25,0.00023835,2]
[372507229,1752663207905,-641.88,0.00023835,2]
[372507230,1752663207916,-12650.62,0.00023835,2]
[372507231,1752663207926,-609.0,0.00023835,2]
[372507232,1752663207936,-548.40227548,0.00023835,2]
[372507233,1752663207947,-5175.99,0.00023835,2]
[372507234,1752663207962,-2321.93,0.00023835,2]